{"text_format":"1","workbook":"xlsx","n_sheets":5,"sheets":["Pokyny k vyplnění","Zastoupeny","PovereniZastupci","VedouciOsoby","Ciselniky"],"not_rendered":{"charts":0,"images":14,"macros":1,"external_links":0,"defined_names":2,"comments":0,"pivot_tables":0},"unopened":[],"bounds":{"document_bytes":16777216,"sheet_cells":100000,"rows_first":2000,"rows_last":500,"rows_between":2000,"halvings":0,"cell_chars":16384,"cell_head_chars":4096},"cells_cut":0,"cells_raw":0,"read":"whole","date_system":"1900"}

{"sheet":"Pokyny k vyplnění","index":0,"n_rows":30,"n_cols":2,"rows_kept":30,"cut":false,"hidden":false,"merged":[]}
[null,"Postup při vyplňování formuláře"]
[]
[null,"Na listu „Zastoupeny“ vyplní zastoupený:"]
[null,"1. Identifikační údaje o právnické osobě"]
[]
[null,"Na listu \"PovereniZastupci\" vyplní zastoupený informace o jednom nebo více pověřených zástupcích takto:"]
[null,"1. Ve sloupci 1 (\"Pořadové číslo\") se automaticky vyplní pořadové číslo záznamu od 1 do n, kde n se rovná počtu záznamů."]
[null,"2. Ve sloupci 2 (\"Druh zápisu (Nový, Změna, Výmaz)\") vyplní, o jaký druh zápisu se jedná. "]
[null,"a)     v případě, že se jedná o první zápis daného vázaného zástupce do seznamu pověřených zástupců, vyplní písmeno N,"]
[null,"b)     v případě, že se jedná o změnu údajů o vázaném zástupci již zapsaném do seznamu nebo o změnu rozsahu jemu povolených činností, vyplní písmeno Z. Je nutné vždy uvádět požadovaný stav po zápisu. "]
[null,"c)     v případě, že se jedná o vymazání pověřeného zástupce ze seznamu vázaných zástupců, vyplní písmeno V."]
[null,"3. V části identifikační údaje sloupce 3 – 27 vyplní identifikační údaje o vázaném zástupci"]
[null,"a)     pokud je pověřený zástupce fyzickou osobou, vyplní sloupce 3 – 17 (rodné číslo a identifikační číslo vyplňuje pouze u osob, jímž byla přidělena),"]
[null,"b)     pokud je pověřený zástupce právnickou osobou, vyplní sloupce 18 – 27 (IČO vyplňuje pouze u osob, jímž bylo přiděleno; u zahraniční osoby vyplní její obdobný identifikační údaj používaný v zemi, kde má tato osoba sídlo)."]
[null,"4. Ve sloupcích 28 – 42 vyplní písmeno X u těch činností, které je daný vázaný zástupce oprávněn vykonávat. Sloupce činností jsou dostupné v závislosti na roli zastoupeného a nemusí být tedy zobrazovány všechny sloupce činností."]
[]
[null,"Na listu \"VedouciOsoby\" vyplní zastoupený informace o vedoucích osobách pověřených právnických osob:"]
[null,"1. Ve sloupci 1 (\"Pořadové číslo\") se automaticky vyplní pořadové číslo záznamu od 1 do n, kde n se rovná počtu záznamů."]
[null,"2. Ve sloupci 2 (\"Druh zápisu (Nový, Změna, Výmaz)\") vyplní, o jaký druh zápisu se jedná. "]
[]
[null,"Obecná pravidla"]
[null,"1. Pokud se jedná o druh záznamu Z (Změna), vyplní zastoupený aktuální stav všech identifikačních údajů a aktuální rozsah všech povolených činností u daného pověřeného zástupce. Pokud je tedy žádáno např. o nové činnosti při zachování stávajících činností, tak je nutné vybrat nejen nově požadované činnosti, ale je nutné vybrat také stávající činnosti žadatele. "]
[null,"2. Změna rozsahu činností znamená rozšíření i odebrání povolených činností. "]
[null,"3. Pokud se jedná o druh záznamu V (Výmaz), vyplní zastoupený pouze identifikační údaje pověřeného zástupce. Tento pověřený zástupce bude vymazán ze seznamu pověřených zástupců."]
[null,"4. Do položky „Stát“ v adrese zastoupeného a pověřeného zástupce vyplní zastoupený kód ze sloupce „Kód země“ podle číselníku zemí umístěného na listu „Ciselniky“."]
[null,"5. Pokud nebudou u pověřeného zástupce správně vyplněny položky Identifikační číslo a Rodné číslo (byla-li jim tato čísla přidělena), nebude tento takový pověřený zástupce zapsán do seznamu pověřených zástupců."]
[null,"8. Všechny datumy se uvádějí ve formátu dd.mm.rrrr."]
[null,"9. IČO se uvádí bez mezer."]
[null,"10. Množství posílaných dat je omezeno na 100 subjektů."]
[null,"11. Pro konverzi do XML je k dispozici na listech \"Zatoupeny\", \"PoverenyZastupci\" a \"VedouciOsoby\" tlačítko \"Konverze do XML\", jehož použitím se dokument automaticky transformuje do formátu XML. "]

{"sheet":"Zastoupeny","index":1,"n_rows":10,"n_cols":2,"rows_kept":10,"cut":false,"hidden":false,"merged":[[10,1,10,2],[3,1,3,2],[1,1,2,2],[9,1,9,2]]}
[]
[null,"Informace pro zápis do seznamu pověřených zástupců"]
[]
[null,"I. Základní identifikace zastoupeného"]
[]
[null,"Právnická osoba"]
[null,"Identifikační číslo"]
[null,"Název / Obchodní firma"]
[]
[null,"Typ subjektu (vyberte typ zastoupeného, pro který budou vázaní zástupci činní)"]

{"sheet":"PovereniZastupci","index":2,"n_rows":114,"n_cols":42,"rows_kept":114,"cut":false,"hidden":false,"merged":[[11,36,11,37],[12,38,13,38],[12,39,13,39],[12,40,13,40],[12,41,13,41],[12,36,13,36],[12,37,13,37],[12,6,13,6],[11,30,11,32],[12,30,12,32],[11,33,11,35],[12,33,12,35],[12,27,13,27],[12,26,13,26],[12,28,13,28],[12,29,13,29],[10,28,10,40],[10,0,13,0],[10,1,13,1],[11,16,11,25],[12,17,13,17],[12,16,13,16],[12,18,12,25],[10,2,10,25],[10,26,10,27],[12,8,12,15],[11,2,11,15],[12,7,13,7],[12,2,13,2],[12,3,13,3],[12,4,13,4],[12,5,13,5]]}
[]
["II. Pověření zástupci"]
[]
[null,null,null,null,null,null,null,null,null,null,null,null,null,null,null,null,null,null,null,null,null,null,null,null,null,"IEP","x","x","x","x","x","x","x","x","x","x","x","x","x","x","x"]
[null,null,null,null,null,null,null,null,null,null,null,null,null,null,null,null,null,null,null,null,null,null,null,null,null,"PI",null,null,"x","x","x","x","x","x","x","x","x","x","x","x","x"]
[null,null,null,null,null,null,null,null,null,null,null,null,null,null,null,null,null,null,null,null,null,null,null,null,null,"PPSMR",null,null,"x","x","x","x","x","x","x","x","x","x","x",null,null,"x"]
[null,null,null,null,null,null,null,null,null,null,null,null,null,null,null,null,null,null,null,null,null,null,null,null,null,"VEPMR","x","x","x","x","x","x","x","x","x","x","x","x","x",null,null,"x"]
[null,null,null,null,null,null,null,null,null,null,null,null,null,null,null,null,null,null,null,null,null,null,null,null,null,"AIS",null,null,null,null,null,null,null,null,null,null,null,null,null,null,"x"]
[null,null,null,null,null,null,null,null,null,null,null,null,null,null,null,null,null,null,null,null,null,null,null,null,null,null,"CinnPStyk1","CinnPStyk2","CinnPS3a","CinnPS3b","CinnPS3c1","CinnPS3c2","CinnPS3c3","CinnPS3d1","CinnPS3d2","CinnPS3d3","CinnPS3e1","CinnPS3e2","CinnPS3f","CinnPS3g","CinnPS3h","CinnSU1"]
[1,2,3,4,5,6,7,8,9,10,11,12,13,14,15,16,17,18,19,20,21,22,23,24,25,26,27,28,29,30,31,32,33,34,35,36,37,38,39,40,41,"43."]
["Pořadové číslo","Druh zápisu (Nový, Změna, Výmaz)","Identifikační údaje pověřeného zástupce",null,null,null,null,null,null,null,null,null,null,null,null,null,null,null,null,null,null,null,null,null,null,null,"Činnost podle zákona č. 370/2017, o platebním styku týkající se elektronických peněz",null,"Platební služby podle zákona č. 370/2017, o platebním styku, které se netýkají elektronických peněz",null,null,null,null,null,null,null,null,null,null,null,null,"Činnost podle zákona č. 257/2016 Sb., o spotřebitelském úvěru"]
[null,null,"Fyzická osoba",null,null,null,null,null,null,null,null,null,null,null,null,null,"Právnická osoba",null,null,null,null,null,null,null,null,null,null,null,"a)","b)","c)",null,null,"d)",null,null,"e)",null,"f)","g)","h)"]
[null,null,"Titul před jménem","Jméno(a)","Příjmení","Titul za jménem","Datum narození","Identifikační číslo","Adresa trvalého pobytu",null,null,null,null,null,null,null,"Identifikační číslo","Název / Obchodní firma","Adresa sídla",null,null,null,null,null,null,null,"distribuce elektronických peněz","zpětná výměna elektronických peněz","služba umožňující vložení hotovosti na platební účet vedený poskytovatelem (§3/a)","služba umožňující výběr hotovosti z platebního účtu vedeného poskytovatelem (§3/b)","Provedení převodu peněžních prostředků z platebního účtu, jestliže poskytovatel neposkytuje uživateli převáděné peněžní prostředky jako úvěr, k němuž dává platební příkaz",null,null,"Provedení převodu peněžních prostředků z platebního účtu, jestliže poskytovatel poskytuje uživateli převáděné peněžní prostředky jako úvěr, k němuž dává platební příkaz",null,null,"vydávání a správa platebních prostředků","předávání platebního příkazu a zpracování platebních transakcí, je-li uživatel příjemcem","provedení převodu peněžních prostředků, při němž plátce ani příjemce nevyužívají platební účet u poskytovatele plátce (poukazování peněz)","služba nepřímého dání platebního příkazu","služba informování o platebním účtu","poskytování spotřebitelského úvěru"]
[null,null,null,null,null,null,null,null,"Ulice","Číslo popisné","Číslo orientační","Písmo orientační","Část obce","Obec","PSČ","Stát",null,null,"Ulice","Číslo popisné","Číslo orientační","Písmo orientační","Část obce","Obec","PSČ","Stát",null,null,null,null,"1. plátce","2. příjemce","3. plátce prostřednictvím příjemce","1. plátce","2. příjemce","3. plátce prostřednictvím příjemce"]
[{"$f":"IF(B15<>\"\",1,\"\")","v":""}]
[{"$f":"IF(B16<>\"\",A15+1,\"\")","v":""}]
[{"$f":"IF(B17<>\"\",A16+1,\"\")","v":""}]
[""]
[""]
[""]
[""]
[""]
[""]
[""]
[""]
[""]
[""]
[""]
[""]
[""]
[""]
[""]
[""]
[""]
[""]
[""]
[""]
[""]
[""]
[""]
[""]
[""]
[""]
[""]
[""]
[""]
[""]
[""]
[""]
[""]
[""]
[""]
[""]
[""]
[""]
[""]
[""]
[""]
[""]
[""]
[""]
[""]
[""]
[""]
[""]
[""]
[""]
[""]
[""]
[""]
[""]
[""]
[""]
[""]
[""]
[""]
[""]
[""]
[""]
[""]
[{"$f":"IF(B81<>\"\",A80+1,\"\")","v":""}]
[""]
[""]
[""]
[""]
[""]
[""]
[""]
[""]
[""]
[""]
[""]
[""]
[""]
[""]
[""]
[""]
[""]
[""]
[""]
[""]
[""]
[""]
[""]
[""]
[""]
[""]
[""]
[""]
[""]
[""]
[""]
[""]
[""]

{"sheet":"VedouciOsoby","index":3,"n_rows":108,"n_cols":16,"rows_kept":108,"cut":false,"hidden":false,"merged":[[6,9,7,9],[6,10,7,10],[6,11,7,11],[6,12,7,12],[6,13,7,13],[4,0,7,0],[4,1,7,1],[4,2,7,2],[4,3,4,15],[5,3,7,3],[5,4,7,4],[5,5,7,5],[5,6,7,6],[5,7,7,7],[5,8,5,15],[6,14,7,14],[6,15,7,15],[6,8,7,8]]}
["III. Vedoucí osoby pověřené osoby právnické osoby"]
[]
[]
["1.","2.","3.","4.","5.","6.","7.","8.","9.","10.","11.","12.","13.","14.","15.","16."]
["Pořadové číslo","Druh zápisu (nový, změna, výmaz)","IČO obchodního zástupce právnické osoby","Identifikační údaje vedoucí osoby"]
[null,null,null,"Titul před jménem","Jméno(a)","Příjmení","Titul za jménem","Datum narození","Adresa bydliště"]
[null,null,null,null,null,null,null,null,"Ulice","Číslo popisné","Číslo orientační","Písmeno orientační","Část obce","Obec","PSČ","Stát"]
[]
[{"$f":"IF(B9<>\"\",A8+1,\"\")","v":""}]
[""]
[""]
[""]
[""]
[""]
[""]
[""]
[""]
[""]
[""]
[""]
[""]
[""]
[""]
[""]
[""]
[""]
[""]
[""]
[""]
[""]
[""]
[""]
[""]
[""]
[""]
[""]
[""]
[""]
[""]
[""]
[""]
[""]
[""]
[""]
[""]
[""]
[""]
[""]
[""]
[""]
[""]
[""]
[""]
[""]
[""]
[""]
[""]
[""]
[""]
[""]
[""]
[""]
[""]
[""]
[""]
[""]
[""]
[""]
[""]
[""]
[""]
[""]
[{"$f":"IF(B73<>\"\",A72+1,\"\")","v":""}]
[""]
[""]
[""]
[""]
[""]
[""]
[""]
[""]
[""]
[""]
[""]
[""]
[""]
[""]
[""]
[""]
[""]
[""]
[""]
[""]
[""]
[""]
[""]
[""]
[""]
[""]
[""]
[""]
[""]
[""]
[""]
[""]
[""]
[""]
[""]

{"sheet":"Ciselniky","index":4,"n_rows":246,"n_cols":3,"rows_kept":246,"cut":false,"hidden":false,"merged":[]}
[]
[null,"Název země","Kód země"]
[null,"Česká republika","CZ"]
[null,"Afghánistán","AF"]
[null,"Albánská republika","AL"]
[null,"Alžírská lidová demokratická republika","DZ"]
[null,"Americká Samoa","AS"]
[null,"Americké Panenské ostrovy","VI"]
[null,"Andorrské knížectví","AD"]
[null,"Angolská republika","AO"]
[null,"Anguilla","AI"]
[null,"Antarktida","AQ"]
[null,"Antigua a Barbuda","AG"]
[null,"Argentinská republika","AR"]
[null,"Arménská republika","AM"]
[null,"Aruba","AW"]
[null,"Austrálie","AU"]
[null,"Azerbajdžánská republika","AZ"]
[null,"Bahamské společenství","BS"]
[null,"Bahrajnské království","BH"]
[null,"Bangladéšská lidová republika","BD"]
[null,"Barbados","BB"]
[null,"Belgické království","BE"]
[null,"Belize","BZ"]
[null,"Běloruská republika","BY"]
[null,"Beninská republika","BJ"]
[null,"Bermudy (brit.)","BM"]
[null,"Bhútánské království","BT"]
[null,"Bolívarovská republika Venezuela","VE"]
[null,"Bolivijská republika","BO"]
[null,"Bosna a Hercegovina","BA"]
[null,"Botswanská republika","BW"]
[null,"Bouvetův ostrov","BV"]
[null,"Brazilská federativní republika","BR"]
[null,"Britské indickooceánské území","IO"]
[null,"Britské Panenské ostrovy","VG"]
[null,"Brunej Darussalam","BN"]
[null,"Bulharská republika","BG"]
[null,"Burkina Faso","BF"]
[null,"Burundská republika","BI"]
[null,"Bývalá jugoslávská republika Makedonie","MK"]
[null,"Cookovy ostrovy","CK"]
[null,"Čadská republika","TD"]
[null,"Čínská lidová republika","CN"]
[null,"Dánské království","DK"]
[null,"Demokratická republika Svatý Tomáš a Princovův ostrov","ST"]
[null,"Dominické společenství","DM"]
[null,"Dominikánská republika","DO"]
[null,"Džibutská republika","DJ"]
[null,"Egyptská arabská republika","EG"]
[null,"Ekvádorská republika","EC"]
[null,"Eritrea","ER"]
[null,"Estonská republika","EE"]
[null,"Etiopská federativní demokratická republika","ET"]
[null,"Faerské ostrovy","FO"]
[null,"Falklandy (Malvíny)","FK"]
[null,"Federativní státy  Mikronésie","FM"]
[null,"Filipínská republika","PH"]
[null,"Finská republika","FI"]
[null,"Francouzská Guyana","GF"]
[null,"Francouzská jižní území","TF"]
[null,"Francouzská Polynésie","PF"]
[null,"Francouzská republika","FR"]
[null,"Gabonská republika","GA"]
[null,"Gambijská republika","GM"]
[null,"Ghanská republika","GH"]
[null,"Gibraltar (brit.)","GI"]
[null,"Grenada","GD"]
[null,"Grónsko","GL"]
[null,"Gruzie","GE"]
[null,"Guadeloupe","GP"]
[null,"Guam","GU"]
[null,"Guatemalská republika","GT"]
[null,"Guayanská republika","GY"]
[null,"Guernsey, C.I.","GG"]
[null,"Guinejská republika","GN"]
[null,"Haitská republika","HT"]
[null,"Heardův ostrov a McDonaldovy ostrovy","HM"]
[null,"Honduraská republika","HN"]
[null,"Chilská republika","CL"]
[null,"Chorvatská republika","HR"]
[null,"Indická republika","IN"]
[null,"Indonéská republika","ID"]
[null,"Irácká republika","IQ"]
[null,"Íránská islámská republika","IR"]
[null,"Irsko","IE"]
[null,"Islandská republika","IS"]
[null,"Italská republika","IT"]
[null,"Izraelský stát","IL"]
[null,"Jamajka","JM"]
[null,"Japonsko","JP"]
[null,"Jemenská republika","YE"]
[null,"Jersey, C.I.","JE"]
[null,"Jihoafrická republika","ZA"]
[null,"Jižní Georgie a Jižní Sandwichovy ostrovy","GS"]
[null,"Jordánské hášimovské království","JO"]
[null,"Kajmanské ostrovy (brit.)","KY"]
[null,"Kambodžské království","KH"]
[null,"Kamerunská republika","CM"]
[null,"Kanada","CA"]
[null,"Kapverdská republika","CV"]
[null,"Kazašská republika","KZ"]
[null,"Keňská republika","KE"]
[null,"Kokosové ostrovy","CC"]
[null,"Kolumbijská republika","CO"]
[null,"Komorský svaz","KM"]
[null,"Konžská demokratická republika","CD"]
[null,"Konžská republika","CG"]
[null,"Korejská lidově demokratická republika","KP"]
[null,"Korejská republika","KR"]
[null,"Kostarická republika","CR"]
[null,"Království Tonga","TO"]
[null,"Kubánská republika","CU"]
[null,"Kuvajtský stát","KW"]
[null,"Kyperská republika","CY"]
[null,"Laoská lidově demokratická republika","LA"]
[null,"Lesothské království","LS"]
[null,"Libanonská republika","LB"]
[null,"Liberijská republika","LR"]
[null,"Libyjská arabská  lidová socialistická džamahírije","LY"]
[null,"Lichtenštejnské knížectví","LI"]
[null,"Litevská republika","LT"]
[null,"Lotyšská republika","LV"]
[null,"Lucemburské velkovévodství","LU"]
[null,"Madagaskarská republika","MG"]
[null,"Maďarská republika","HU"]
[null,"Malajsie","MY"]
[null,"Malawská republika","MW"]
[null,"Maledivská republika","MV"]
[null,"Malijská republika","ML"]
[null,"Maltská republika","MT"]
[null,"Marocké království","MA"]
[null,"Martinik","MQ"]
[null,"Mauricijská republika","MU"]
[null,"Mauritánská islámská republika","MR"]
[null,"Mayotte","YT"]
[null,"Menší odlehlé ostrovy USA","UM"]
[null,"Moldavská republika","MD"]
[null,"Monacké knížectví","MC"]
[null,"Mongolsko","MN"]
[null,"Montserrat (brit.)","MS"]
[null,"Mosambická republika","MZ"]
[null,"Myanmarský svaz","MM"]
[null,"Namibijská republika","NA"]
[null,"Nauruská republika","NR"]
[null,"Nepálské království","NP"]
[null,"Nezávislý stát Západní Samoa","WS"]
[null,"Nigerijská federativní republika","NG"]
[null,"Nigerská republika","NE"]
[null,"Nikaragujská republika","NI"]
[null,"Niue","NU"]
[null,"Nizozemské Antily","AN"]
[null,"Nizozemské království","NL"]
[null,"Norfolk","NF"]
[null,"Norské království","NO"]
[null,"Nová Kaledonie","NC"]
[null,"Nový Zéland","NZ"]
[null,"Okupovaná palestinská  území","PS"]
[null,"Ostrov Man","IM"]
[null,"Pákistánská islámská republika","PK"]
[null,"Palauská republika","PW"]
[null,"Panamská republika","PA"]
[null,"Panamské průplavové pásmo","PZ"]
[null,"Papua  Nová Guinea","PG"]
[null,"Paraguayská republika","PY"]
[null,"Peruánská republika","PE"]
[null,"Pitcairn","PN"]
[null,"Polská republika","PL"]
[null,"Portoriko","PR"]
[null,"Portugalská republika","PT"]
[null,"Rakouská republika","AT"]
[null,"Republika Černá Hora","ME"]
[null,"Republika Fidžijské ostrovy","FJ"]
[null,"Republika Guinea - Bissau","GW"]
[null,"Republika Kiribati","KI"]
[null,"Republika Kyrgyzstán","KG"]
[null,"Republika Marshallovy ostrovy","MH"]
[null,"Republika Pobřeží  slonoviny","CI"]
[null,"Republika Rovníková Guinea","GQ"]
[null,"Republika Sierra Leone","SL"]
[null,"Republika Srbsko","RS"]
[null,"Republika Tadžikistán","TJ"]
[null,"Republika Trinidad a Tobago","TT"]
[null,"Republika Uzbekistán","UZ"]
[null,"Republika Zimbabwe","ZW"]
[null,"Réunion","RE"]
[null,"Rumunsko","RO"]
[null,"Ruská federace","RU"]
[null,"Rwandská republika","RW"]
[null,"Řecká republika","GR"]
[null,"Saint Pierre a Miquelon","PM"]
[null,"Salvadorská republika","SV"]
[null,"Sanmarinská republika","SM"]
[null,"Saúdskoarabské království","SA"]
[null,"Senegalská republika","SN"]
[null,"Seychelská republika","SC"]
[null,"Singapurská republika","SG"]
[null,"Sjednocená republika Tanzanie","TZ"]
[null,"Slovenská republika","SK"]
[null,"Slovinská republika","SI"]
[null,"Somálská republika","SO"]
[null,"Spojené arabské emiráty","AE"]
[null,"Spojené království Velké Británie a Severního Irska","GB"]
[null,"Spojené státy americké","US"]
[null,"Spojené státy mexické","MX"]
[null,"Společenství Severních Marian","MP"]
[null,"Spolková republika Německo","DE"]
[null,"Srílanská demokratická socialistická republika","LK"]
[null,"Stát Katar","QA"]
[null,"Středoafrická republika","CF"]
[null,"Súdánská republika","SD"]
[null,"Sultanát Omán","OM"]
[null,"Surinamská republika","SR"]
[null,"Svalbard a ostrov Jan Mayen","SJ"]
[null,"Svatá Helena","SH"]
[null,"Svatá Lucie","LC"]
[null,"Svatý Kryštof a Nevis","KN"]
[null,"Svatý stolec (Vatikánský městký stát)","VA"]
[null,"Svatý Vincenc a Grenadiny","VC"]
[null,"Svazijské království","SZ"]
[null,"Syrská arabská republika","SY"]
[null,"Šalamounovy ostrovy","SB"]
[null,"Španělské království","ES"]
[null,"Švédské království","SE"]
[null,"Švýcarská konfederace","CH"]
[null,"Thajské království","TH"]
[null,"Tchaj-wan, čínská provincie","TW"]
[null,"Timor - Leste","TL"]
[null,"Tokelau","TK"]
[null,"Tožská  republika","TG"]
[null,"Tuniská republika","TN"]
[null,"Turecká republika","TR"]
[null,"Turkmenistán","TM"]
[null,"Turks a Caicos (brit.)","TC"]
[null,"Tuvalu","TV"]
[null,"Ugandská republika","UG"]
[null,"Ukrajina","UA"]
[null,"Uruguayská východní republika","UY"]
[null,"Vánoční ostrov","CX"]
[null,"Vanuatská republika","VU"]
[null,"Vietnamská socialistická republika","VN"]
[null,"Wallis a Futuna","WF"]
[null,"Zambijská republika","ZM"]
[null,"Západní Sahara","EH"]
[null,"Zvláštní administr. oblast Čínské lidové republiky Hongkong","HK"]
[null,"Zvláštní adminstr. oblast Čínské lidové republiky, Macao","MO"]